bitfinex-derivatives/quotes_SOLF0:USTF0_20250817
["timestamp","ask_amount","ask_price","bid_price","bid_amount"]
[1755396319091,2.93,188.58,188.57,2.89]
[1755396319592,2.93,188.6,188.57,5.2996]
[1755396319790,3.96631072,188.59,188.57,5.2996]
[1755396320000,2.93,188.59,188.57,5.2996]
[1755396320190,2.93,188.59,188.58,2.89]
[1755396320391,6.89631461,188.59,188.58,2.89]
[1755396322291,6.89631461,188.59,188.58,8.1894]
[1755396322493,5.85415738,188.66,188.59,2.89]
[1755396322494,2.93,188.66,188.59,2.89]
[1755396322803,6.88292048,188.65,188.63,2.89]
[1755396322991,2.93,188.65,188.62,1.98000046]
[1755396323196,356.16,188.73,188.62,2.89]
[1755396323197,2.93,188.63,188.62,2.89]
[1755396323494,2.93,188.63,188.62,8.1882]
[1755396326095,2.93,188.7,188.64,2.89]
[1755396326301,2.93,188.68,188.65,2.89]
[1755396326496,2.93,188.66,188.65,2.89]
[1755396326698,6.85101782,188.66,188.65,2.89]
[1755396329402,2.93,188.66,188.65,2.89]
[1755396331001,2.93,188.66,188.65,8.1874]
[1755396332298,5.85415738,188.75,188.65,2.89]
[1755396332602,2.93,188.73,188.72,2.89]
[1755396332999,2.93,188.73,188.72,8.1854]
[1755396333403,5.85415738,188.82,188.72,8.1854]
[1755396333601,2.93,188.75,188.74,8.1849]
[1755396335606,2.93,188.82,188.74,1.98000046]
[1755396335900,2.93,188.8,188.75,2.89]
[1755396336102,2.93,188.78,188.76,5.2941]
[1755396336404,2.93,188.77,188.76,5.2941]
[1755396336805,2.93,188.77,188.76,8.1841]
[1755396354614,2.93,188.77,188.76,9.45090544]
[1755396358919,129.22,188.83,188.78,8.3537]
[1755396358920,2.92,188.79,188.78,8.3537]
[1755396359116,2.92,188.79,188.78,9.62050544]
[1755396359622,2.92,188.8,188.79,5.2932]
[1755396359821,2.92,188.8,188.79,9.62000544]
[1755396364320,2.92,188.86,188.81,5.2929]
[1755396364520,2.92,188.84,188.81,8.3529]
[1755396364723,2.92,188.82,188.81,8.3529]
[1755396366328,2.92,188.82,188.81,3.06]
[1755396367328,6.81778424,188.82,188.81,3.06]
[1755396367628,6.81778424,188.82,188.81,8.3529]
[1755396368025,0.92193978,188.88,188.81,4.32680544]
[1755396368236,2.92,188.86,188.85,3.06]
[1755396368434,6.81745373,188.86,188.85,3.06]
[1755396368824,6.81745373,188.86,188.85,8.3518]
[1755396369029,6.81745373,188.86,188.85,3.06]
[1755396371434,2.92,188.85,188.79,4.32680544]
[1755396371640,2.92,188.83,188.79,3.06]
[1755396371932,0.92164678,188.92,188.73,42.0]
[1755396371933,5.16615975,188.82,188.76,1.26680544]
[1755396372133,2.92,188.81,188.75,4.32680544]
[1755396372338,2.92,188.8,188.76,3.06]
[1755396372742,3.90160777,188.79,188.75,1.26680544]
[1755396372936,6.82160777,188.78,188.77,3.06]
[1755396373337,6.82160777,188.78,188.75,1.26680544]
[1755396373537,2.92,188.76,188.75,1.26680544]
[1755396373737,2.92,188.76,188.74,3.06]
[1755396373938,1.26680544,188.8,188.73,1.26680544]
[1755396374136,2.92,188.75,188.73,6.56170544]
[1755396374736,2.92,188.75,188.74,3.06]
[1755396375034,2.92,188.82,188.75,3.06]
[1755396375241,2.92,188.8,188.75,3.06]
[1755396375440,2.92,188.78,188.74,3.06]
[1755396375734,3.90598365,188.77,188.72,1.98029978]
[1755396375940,2.92,188.75,188.74,3.06]
[1755396376536,6.8309926,188.75,188.74,3.06]
[1755396379543,3.9109926,188.75,188.73,3.04]
[1755396379744,3.06,188.74,188.73,3.04]
[1755396380049,3.06,188.73,188.67,3.04]
[1755396380244,3.06,188.71,188.67,3.04]
[1755396380437,3.06,188.7,188.67,3.04]
[1755396380642,3.06,188.69,188.68,3.04]
[1755396381050,5.85415738,188.79,188.68,3.04]
[1755396381348,3.06,188.7,188.68,3.04]
[1755396381749,3.06,188.69,188.66,7.27739978]
[1755396382448,3.06,188.69,188.67,3.04]
[1755396382647,3.06,188.78,188.68,3.04]
[1755396382948,3.06,188.76,188.68,3.04]
[1755396383152,3.91992505,188.75,188.68,3.04]
[1755396383351,3.91992505,188.74,188.68,3.04]
[1755396383647,3.06,188.72,188.68,3.04]
[1755396385948,3.06,188.72,188.69,3.04]
[1755396386753,3.06,188.72,188.7,3.04]
[1755396387251,3.91623231,188.71,188.66,3.04]
[1755396387454,1.98029978,188.77,188.66,5.2969]
[1755396387652,1.98029978,188.77,188.67,3.04]
[1755396387653,3.06,188.69,188.67,3.04]
[1755396389850,3.06,188.69,188.67,8.3367]
[1755396390049,1.98029978,188.77,188.68,3.04]
[1755396390245,3.06,188.7,188.68,3.04]
[1755396391456,3.06,188.69,188.68,3.04]
[1755396392853,3.06,188.69,188.66,5.2971]
[1755396393153,3.06,188.69,188.66,3.04]
[1755396393357,3.06,188.68,188.66,3.04]
[1755396396761,1.98029978,188.77,188.66,3.04]
[1755396396958,3.90895835,188.76,188.66,3.04]
[1755396397158,3.90895835,188.75,188.66,3.04]
[1755396397360,3.06,188.73,188.62,5.02029978]
[1755396397559,3.06,188.71,188.63,3.04]
[1755396397760,3.06,188.69,188.63,3.04]
[1755396398054,3.06,188.69,188.64,5.2976]
[1755396398262,3.06,188.69,188.66,3.04]
[1755396401865,3.06,188.69,188.63,3.04]
[1755396402066,3.06,188.69,188.62,1.98029978]
[1755396402067,3.06,188.69,188.6,3.04]
[1755396402363,3.06,188.67,188.6,3.04]
[1755396402962,3.06,188.67,188.64,1.98029978]
[1755396403164,3.06,188.67,188.65,3.04]
[1755396403462,3.06,188.66,188.65,3.04]
[1755396407965,3.06,188.66,188.63,3.11]
[1755396408171,3.06,188.66,188.61,3.11]
[1755396408372,3.06,188.66,188.6,7.27889978]
[1755396408575,3.06,188.66,188.62,3.11]
[1755396410166,3.06,188.66,188.63,3.11]
[1755396415972,3.06,188.66,188.64,3.11]
[1755396417166,3.91570098,188.65,188.64,3.11]
[1755396417367,6.78570098,188.65,188.64,3.11]
[1755396417575,2.87,188.66,188.64,3.11]
[1755396417974,2.87,188.65,188.64,8.4076]
[1755396418378,2.87,188.65,188.64,3.11]
[1755396420272,2.87,188.71,188.65,3.11]
[1755396420477,2.87,188.69,188.65,3.11]
[1755396420874,2.87,188.75,188.7,3.11]
[1755396421070,2.87,188.73,188.7,3.11]
[1755396421376,2.87,188.71,188.7,3.11]
[1755396421574,2.87,188.76,188.7,3.11]
[1755396421771,2.87,188.74,188.7,3.11]
[1755396422078,6.78806718,188.73,188.7,3.11]
[1755396422277,2.87,188.73,188.7,3.11]
[1755396423169,2.87,188.73,188.7,8.4059]
[1755396423367,2.87,188.73,188.71,3.11]
[1755396423576,2.87,188.79,188.73,3.11]
[1755396423776,6.78905399,188.78,188.73,3.11]
[1755396423977,3.91905399,188.77,188.76,3.11]
[1755396424575,6.78905399,188.77,188.76,3.11]
[1755396426274,2.87,188.77,188.76,3.11]
[1755396439391,2.87,188.77,188.74,2.95]
[1755396439983,357.94029978,188.85,188.74,2.95]
[1755396440290,2.84,188.76,188.74,2.95]
[1755396441186,2.84,188.76,188.75,5.2946]
[1755396441489,2.84,188.76,188.75,8.2446]
[1755396442090,2.84,188.76,188.75,2.95]
[1755396445893,2.84,188.84,188.75,8.2446]
[1755396446094,2.84,188.82,188.76,2.95]
[1755396446300,2.84,188.8,188.77,2.95]
[1755396447397,2.84,188.8,188.76,2.95]
[1755396447995,2.84,188.8,188.75,2.95]
[1755396448591,2.84,188.8,188.76,2.95]
[1755396448798,2.84,188.77,188.72,4.21706104]
[1755396449097,2.84,188.77,188.73,2.95]
[1755396449395,3.90373041,188.76,188.7,1.26706104]
[1755396449595,2.84,188.77,188.72,1.26706104]
[1755396449898,2.84,188.77,188.75,2.95]
[1755396450096,2.84,188.77,188.76,2.95]
[1755396450697,2.84,188.77,188.75,2.95]
[1755396450997,2.84,188.77,188.76,2.95]
[1755396452297,2.84,188.77,188.75,2.95]
[1755396454296,2.84,188.77,188.76,2.95]
[1755396456398,6.74901273,188.77,188.76,2.95]
[1755396458299,2.84,188.8,188.76,2.95]
[1755396458507,2.84,188.78,188.76,2.95]
[1755396460102,2.84,188.78,188.77,5.294]
[1755396460297,2.84,188.78,188.77,8.244]
[1755396460498,3.91575305,188.78,188.77,8.244]
[1755396460705,2.84,188.84,188.78,2.95]
[1755396460905,3.91579853,188.83,188.78,2.95]
[1755396461116,3.91579853,188.82,188.78,2.95]
[1755396461306,2.84,188.8,188.79,2.95]
[1755396461511,6.75579853,188.8,188.79,2.95]
[1755396470018,3.91579853,188.8,188.79,8.2434]
[1755396470221,3.91579853,188.8,188.79,2.95]
[1755396470430,2.83,188.82,188.79,8.2432]
[1755396470620,3.91579853,188.81,188.8,4.35631573]
[1755396471124,6.74579853,188.81,188.8,4.35631573]
[1755396473830,6.74579853,188.81,188.8,3.09]
[1755396480832,3.91579853,188.81,188.78,3.09]
[1755396481034,2.83,188.79,188.77,3.09]
[1755396481232,1.26631573,188.83,188.65,42.0]
[1755396481233,3.9270323,188.78,188.65,42.0]
[1755396481434,2.83,188.79,188.76,4.35631573]
[1755396481735,6.75699629,188.78,188.77,3.09]
[1755396491039,2.83,188.77,188.74,4.35631573]
[1755396491235,3.92758357,188.76,188.74,3.09]
[1755396491438,2.83,188.75,188.74,3.09]
[1755396496042,2.83,188.75,188.74,4.35631573]
[1755396496242,2.83,188.8,188.75,3.09]
[1755396496445,2.83,188.78,188.75,3.09]
[1755396496647,6.75898639,188.77,188.75,3.09]
[1755396496851,6.75898639,188.76,188.75,3.09]
[1755396498254,6.75898639,188.76,188.73,5.2949]
[1755396498459,6.78898639,188.75,188.74,4.11631573]
[1755396508861,6.78898639,188.75,188.74,1.26631573]
[1755396509462,6.78898639,188.75,188.74,2.85]
[1755396509662,3.92898639,188.75,188.73,4.11631573]
[1755396509863,2.86,188.74,188.73,4.11631573]
[1755396511061,2.86,188.74,188.73,1.26631573]
[1755396511262,6.78633164,188.74,188.73,1.26631573]
[1755396511463,2.86,188.73,188.71,4.11631573]
[1755396511763,2.86,188.73,188.72,2.85]
[1755396518473,2.86,188.76,188.72,2.85]
[1755396518676,2.86,188.74,188.73,4.11631573]
[1755396518875,6.7855767,188.74,188.73,4.11631573]
[1755396519075,2.86,188.74,188.73,4.11631573]
[1755396521575,6.78680421,188.74,188.73,4.11631573]
[1755396522386,6.78680421,188.74,188.73,1.26631573]
[1755396522785,6.78735659,188.74,188.73,1.26631573]
[1755396523387,6.78735659,188.74,188.73,4.11631573]
[1755396524587,6.78735659,188.74,188.73,2.85]
[1755396524789,6.78735659,188.74,188.73,4.11631573]
[1755396526387,2.86,188.78,188.74,2.85]
[1755396526588,2.86,188.78,188.77,4.11631573]
[1755396527190,2.86,188.78,188.77,2.85]
[1755396527392,2.86,188.78,188.77,4.11631573]
[1755396531293,2.93,188.85,188.78,3.07]
[1755396531588,2.93,188.85,188.81,3.07]
[1755396532388,2.93,188.85,188.8,4.33631573]
[1755396532887,2.93,188.85,188.8,3.07]
[1755396533195,2.93,188.85,188.79,1.26631573]
[1755396533395,1.26631573,188.84,188.78,3.07]
[1755396533694,2.93,188.83,188.79,3.07]
[1755396537694,2.93,188.83,188.78,1.26631573]
[1755396537896,2.93,188.83,188.78,4.33631573]
[1755396538197,2.93,188.83,188.76,4.33631573]
[1755396538389,5.17155845,188.82,188.76,4.33631573]
[1755396538585,2.93,188.8,188.76,4.33631573]
[1755396538792,2.93,188.78,188.76,4.33631573]
[1755396538987,3.90524272,188.77,188.76,3.07]
[1755396539187,2.93,188.77,188.76,3.07]
[1755396539397,6.83524272,188.77,188.76,3.07]
[1755396540396,3.90524272,188.77,188.76,3.07]
[1755396541099,6.83524272,188.77,188.76,3.07]
[1755396542598,6.83524272,188.77,188.75,1.26631573]
[1755396542896,6.83524272,188.76,188.75,4.33631573]
[1755396544094,2.93,188.76,188.75,4.33631573]
[1755396544600,2.93,188.76,188.75,3.07]
[1755396544997,2.93,188.78,188.75,3.07]
[1755396545202,6.83518227,188.77,188.75,3.07]
[1755396545402,2.93,188.77,188.75,3.07]
[1755396546005,7.83397228,188.84,188.75,3.07]
[1755396546302,2.93,188.76,188.75,3.07]
[1755396547902,2.93,188.83,188.75,3.07]
[1755396548102,2.93,188.81,188.75,3.07]
[1755396548301,3.90521127,188.8,188.75,3.07]
[1755396548604,2.93,188.78,188.75,3.07]
[1755396548797,2.93,188.76,188.75,3.07]
[1755396551704,2.93,188.76,188.72,3.07]
[1755396551905,7.83397228,188.84,188.68,42.0]
[1755396551906,2.93,188.74,188.69,3.07]
[1755396552105,2.93,188.74,188.68,1.9798149]
[1755396552303,2.93,188.74,188.71,3.07]
[1755396552503,3.97419199,188.73,188.71,3.07]
[1755396552804,2.93,188.72,188.71,3.07]
[1755396562814,2.81,188.79,188.72,2.93]
[1755396563008,2.81,188.79,188.71,1.9798149]
[1755396563009,3.97560036,188.78,188.77,2.93]
[1755396563405,2.81,188.79,188.77,2.93]
[1755396563705,6.78490256,188.78,188.77,2.93]
[1755396564109,2.81,188.78,188.77,2.93]
[1755396564312,2.81,188.78,188.75,1.9798149]
[1755396564613,2.81,188.78,188.76,2.93]
[1755396564811,3.97506438,188.77,188.76,2.93]
[1755396565013,6.78506438,188.77,188.76,2.93]
[1755396572414,2.81,188.76,188.75,2.93]
[1755396572915,6.78590556,188.76,188.75,2.93]
[1755396574212,2.81,188.75,188.73,2.93]
[1755396574414,2.81,188.75,188.72,7.2752149]
[1755396574614,2.81,188.74,188.73,2.93]
[1755396576816,2.81,188.79,188.7,2.93]
[1755396577016,2.81,188.77,188.7,2.93]
[1755396577218,3.97735991,188.76,188.7,2.93]
[1755396577409,3.97735991,188.75,188.7,2.93]
[1755396577609,2.81,188.73,188.7,2.93]
[1755396578010,2.81,188.73,188.71,2.93]
[1755396578721,2.81,188.79,188.71,2.93]
[1755396579015,2.81,188.77,188.71,2.93]
[1755396579217,2.81,188.75,188.72,2.93]
[1755396579413,2.81,188.73,188.7,1.9798149]
[1755396579612,2.81,188.73,188.72,2.93]
[1755396580017,6.85868306,188.73,188.72,2.93]
[1755396586817,2.81,188.72,188.69,2.93]
[1755396587020,4.04868306,188.71,188.69,2.93]
[1755396587214,2.81,188.76,188.69,2.93]
[1755396587415,3.04,188.74,188.69,2.93]
[1755396587718,3.04,188.72,188.69,2.93]
[1755396587914,7.09024714,188.71,188.69,2.93]
[1755396588119,3.04,188.71,188.69,2.93]
[1755396589215,3.04,188.76,188.69,2.93]
[1755396589419,3.04,188.74,188.69,2.93]
[1755396589716,3.04,188.72,188.69,2.93]
[1755396589919,7.08939392,188.71,188.69,2.93]
[1755396590219,3.04,188.7,188.69,2.93]
[1755396590621,3.04,188.71,188.69,2.93]
[1755396590919,3.04,188.7,188.69,2.93]
[1755396600136,3.04,188.7,188.68,5.2965]
[1755396600431,3.04,188.76,188.66,2.99]
[1755396600624,3.04,188.74,188.66,2.99]
[1755396600826,3.04,188.72,188.66,2.99]
[1755396601023,4.0479732,188.71,188.66,2.99]
[1755396601329,3.04,188.7,188.68,5.2964]
[1755396601523,3.04,188.73,188.69,2.99]
[1755396601732,3.04,188.75,188.71,4.9698149]
[1755396601928,3.04,188.74,188.72,2.99]
[1755396602326,3.04,188.8,188.72,2.99]
[1755396602528,3.04,188.78,188.73,2.99]
[1755396602728,7.08693454,188.77,188.76,1.26699745]
[1755396604629,7.08693454,188.77,188.73,2.99]
[1755396604830,4.04693454,188.76,188.74,2.99]
[1755396605033,7.08693454,188.75,188.72,4.96984688]
[1755396605235,3.04,188.75,188.73,2.99]
[1755396607436,4.047091,188.74,188.73,2.99]
[1755396607634,7.087091,188.74,188.73,2.99]
[1755396609342,3.04,188.73,188.71,2.99]
[1755396609536,4.047091,188.72,188.71,2.99]
[1755396609734,7.087091,188.72,188.71,2.99]
[1755396612535,4.047091,188.72,188.71,2.99]
[1755396613143,7.087091,188.72,188.71,2.99]
[1755396625249,3.02,188.71,188.68,1.97984688]
[1755396625453,7.067091,188.7,188.69,3.05]
[1755396626141,3.02,188.69,188.63,43.97984688]
[1755396626340,4.11763225,188.68,188.64,3.05]
[1755396626543,3.02,188.67,188.64,3.05]
[1755396629249,5.85415738,188.74,188.64,3.05]
[1755396629445,3.02,188.68,188.64,3.05]
[1755396629648,4.17214196,188.67,188.64,3.05]
[1755396629955,3.02,188.68,188.67,3.05]
[1755396630146,7.19214196,188.68,188.67,3.05]
[1755396632453,4.17214196,188.68,188.66,1.97984688]
[1755396632754,3.02,188.67,188.66,5.02984688]
[1755396634448,3.02,188.73,188.67,3.05]
[1755396634648,3.02,188.71,188.67,3.05]
[1755396634848,4.17093422,188.7,188.67,3.05]
[1755396635052,3.02,188.68,188.67,3.05]
[1755396635254,7.19093422,188.68,188.67,3.05]
[1755396635555,3.02,188.67,188.6,128.9]
[1755396635758,355.98,188.84,188.6,130.87984688]
[1755396635759,3.02,188.65,188.6,130.87984688]
[1755396636058,3.02,188.63,188.6,130.87984688]
[1755396636261,3.02,188.63,188.62,3.05]
[1755396636460,7.2404695,188.63,188.62,3.05]
[1755396637749,3.02,188.62,188.61,3.05]
[1755396638054,5.85415738,188.69,188.61,3.05]
[1755396638254,4.21738894,188.68,188.61,3.05]
[1755396638454,3.02,188.66,188.61,3.05]
[1755396638651,3.02,188.64,188.61,3.05]
[1755396638850,4.21738894,188.63,188.61,3.05]
[1755396639057,3.02,188.65,188.61,3.05]
[1755396639260,3.02,188.62,188.61,3.05]
[1755396639660,3.02,188.68,188.57,5.02984688]
[1755396639862,3.02,188.66,188.57,3.05]
[1755396640058,4.21570171,188.65,188.57,3.05]
[1755396640258,3.02,188.63,188.57,3.05]
[1755396640562,3.02,188.61,188.57,3.05]
[1755396640755,3.02,188.59,188.58,3.05]
[1755396642661,5.85415738,188.68,188.58,3.05]
[1755396642859,3.02,188.6,188.58,3.05]
[1755396645465,3.02,188.64,188.58,3.05]
[1755396645663,3.02,188.64,188.61,3.05]
[1755396646058,3.02,188.63,188.61,3.05]
[1755396646266,3.02,188.62,188.6,1.97984688]
[1755396646870,3.02,188.62,188.61,3.05]
[1755396647362,2.92,188.64,188.61,3.05]
[1755396647562,2.92,188.63,188.61,3.05]
[1755396648961,2.92,188.69,188.6,1.97984688]
[1755396649160,2.92,188.67,188.58,2.95]
[1755396649363,2.92,188.65,188.58,2.95]
[1755396649558,4.20245578,188.64,188.58,2.95]
[1755396649765,2.92,188.62,188.58,2.95]
[1755396651070,2.92,188.62,188.59,2.95]
[1755396651264,2.92,188.62,188.6,2.95]
[1755396651670,2.92,188.61,188.57,7.27944688]
[1755396652170,2.92,188.61,188.58,2.95]
[1755396653873,1.97984688,188.69,188.58,2.95]
[1755396654173,2.92,188.6,188.58,2.95]
[1755396656170,1.97984688,188.69,188.58,2.95]
[1755396656371,2.92,188.67,188.58,2.95]
[1755396656675,2.92,188.65,188.58,2.95]
[1755396656875,2.92,188.63,188.58,2.95]
[1755396657869,2.92,188.63,188.57,1.97984688]
[1755396658075,2.92,188.63,188.59,2.95]
[1755396658271,2.92,188.63,188.57,4.92984688]
[1755396658472,2.92,188.61,188.54,135.18984688]
[1755396658774,2.92,188.61,188.55,2.95]
[1755396659878,4.18862719,188.6,188.55,2.95]
[1755396660078,2.92,188.61,188.55,2.95]
[1755396660282,2.92,188.59,188.55,2.95]
[1755396660772,2.92,188.59,188.56,2.95]
[1755396660973,2.92,188.59,188.54,133.21]
[1755396662777,2.92,188.59,188.55,2.95]
[1755396663679,4.18930115,188.58,188.5,4.92984688]
[1755396663881,2.92,188.56,188.51,2.95]
[1755396665875,1.97984688,188.63,188.5,7.28124688]
[1755396666178,2.92,188.61,188.51,2.95]
[1755396666379,2.92,188.59,188.51,2.95]
[1755396666573,4.18876142,188.58,188.51,2.95]
[1755396666770,2.92,188.56,188.51,2.95]
[1755396667685,2.92,188.56,188.52,2.95]
[1755396672091,2.92,188.56,188.51,2.95]
[1755396672991,2.92,188.54,188.51,2.95]
[1755396673700,4.89984688,188.6,188.49,60.95708683]
[1755396673892,2.92,188.58,188.5,2.95]
[1755396674092,4.18964631,188.57,188.5,2.95]
[1755396674294,2.92,188.55,188.47,131.99984688]
[1755396674495,2.92,188.53,188.48,2.95]
[1755396674795,2.92,188.51,188.49,2.95]
[1755396675693,1.97984688,188.57,188.47,132.97]
[1755396675997,2.92,188.55,188.48,2.95]
[1755396676195,2.92,188.53,188.48,2.95]
[1755396676397,2.92,188.51,188.42,2.95]
[1755396676698,2.92,188.49,188.42,2.95]
[1755396677400,2.92,188.49,188.42,5.3038]
[1755396677600,2.92,188.49,188.43,2.99]
[1755396677802,3.1,188.47,188.39,1.97984688]
[1755396678002,3.1,188.45,188.37,2.99]
[1755396678196,3.1,188.43,188.37,2.99]
[1755396679996,3.1,188.43,188.38,2.99]
[1755396680301,3.1,188.42,188.38,2.99]
[1755396681202,3.1,188.41,188.38,2.99]
[1755396682301,5.85415738,188.5,188.38,2.99]
[1755396682302,3.1,188.49,188.38,2.99]
[1755396682503,3.1,188.47,188.4,2.99]
[1755396682703,4.1794066,188.46,188.4,2.99]
[1755396682899,4.1794066,188.45,188.4,2.99]
[1755396683105,3.1,188.47,188.4,2.99]
[1755396683306,3.1,188.45,188.4,2.99]
[1755396684102,3.1,188.44,188.4,5.3044]
[1755396684306,3.1,188.44,188.41,2.99]
[1755396685502,3.1,188.51,188.41,2.99]
[1755396685807,3.1,188.49,188.42,4.96984688]
[1755396686006,3.1,188.49,188.43,2.99]
[1755396686308,3.1,188.49,188.45,1.97984688]
[1755396686509,3.1,188.48,188.46,2.99]
[1755396687099,3.1,188.47,188.45,1.97984688]
[1755396687803,3.1,188.47,188.46,2.99]
[1755396688908,3.1,188.53,188.46,2.99]
[1755396689111,3.1,188.51,188.46,2.99]
[1755396689311,4.17396586,188.5,188.47,2.99]
[1755396689511,4.17396586,188.49,188.47,2.99]
[1755396689714,3.1,188.48,188.47,2.99]
[1755396690713,3.1,188.53,188.47,2.99]
[1755396690911,7.27327265,188.52,188.49,2.99]
[1755396691212,3.1,188.53,188.52,2.99]
[1755396691417,7.27388033,188.53,188.52,2.99]
[1755396695717,3.1,188.52,188.45,1.97984688]
[1755396695918,3.1,188.5,188.46,2.99]
[1755396697024,3.1,188.56,188.46,2.99]
[1755396697222,3.1,188.54,188.46,2.99]
[1755396697420,3.1,188.52,188.46,2.99]
[1755396697721,3.1,188.5,188.46,2.99]
[1755396698622,3.1,188.49,188.46,2.99]
[1755396699123,3.1,188.48,188.46,2.99]
[1755396699623,3.1,188.47,188.45,1.97984688]
[1755396699821,3.1,188.46,188.45,1.97984688]
[1755396700221,3.1,188.46,188.45,4.96984688]
[1755396700414,3.1,188.47,188.46,2.99]
[1755396700617,5.85415738,188.57,188.46,2.99]
[1755396700813,3.1,188.48,188.46,2.99]
[1755396701017,5.07984688,188.56,188.45,2.99]
[1755396701220,3.1,188.54,188.45,2.99]
[1755396701418,3.1,188.52,188.45,2.99]
[1755396701613,3.1,188.5,188.45,2.99]
[1755396702124,3.1,188.48,188.45,2.99]
[1755396702324,3.1,188.5,188.45,2.99]
[1755396702628,7.28731224,188.49,188.45,2.99]
[1755396702822,3.1,188.49,188.45,2.99]
[1755396703324,3.1,188.49,188.45,5.303]
[1755396703626,3.1,188.47,188.45,2.99]
[1755396704326,3.1,188.48,188.45,8.293]
[1755396704526,3.1,188.54,188.46,2.99]
[1755396704729,3.1,188.52,188.46,2.99]
[1755396705021,3.1,188.49,188.46,2.99]
[1755396707932,2.83,188.48,188.46,2.99]
[1755396708633,2.83,188.55,188.47,3.05]
[1755396708833,2.83,188.53,188.47,3.05]
[1755396709127,2.83,188.51,188.47,3.05]
[1755396709328,2.83,188.49,188.47,3.05]
[1755396709538,2.83,188.55,188.48,3.05]
[1755396709734,7.02474169,188.54,188.53,3.05]
[1755396710631,4.19474169,188.54,188.52,1.97984688]
[1755396710838,7.02474169,188.53,188.52,5.02984688]
[1755396711034,2.83,188.52,188.49,1.97984688]
[1755396711437,2.83,188.5,188.49,1.97984688]
[1755396712033,2.83,188.5,188.48,3.05]
[1755396713337,8.68415738,188.56,188.46,1.97984688]
[1755396713545,2.83,188.54,188.46,1.97984688]
[1755396713834,2.83,188.52,188.46,5.02984688]
[1755396714040,4.20937427,188.51,188.46,1.97984688]
[1755396714235,2.83,188.49,188.47,3.05]
[1755396714433,7.04044063,188.48,188.47,3.05]
[1755396714835,2.83,188.51,188.47,3.05]
[1755396715134,7.04034834,188.5,188.47,3.05]
[1755396715340,4.21034834,188.49,188.47,3.05]
[1755396715530,2.83,188.49,188.47,3.05]
[1755396717338,2.83,188.49,188.48,3.05]
[1755396717537,7.04318128,188.49,188.48,3.05]
[1755396721538,2.83,188.48,188.47,3.05]
[1755396721734,2.83,188.47,188.46,1.97984688]
[1755396722338,2.83,188.47,188.46,3.05]
[1755396722535,7.04511052,188.47,188.46,3.05]
[1755396722836,2.83,188.46,188.44,5.02984688]